[Event "*** Titled Tuesday Blitz"]
[Site "Chess.com"]
[Date "2020.03.03"]
[Round "7"]
[White "denizozen"]
[Black "Konavets"]
[Result "0-1"]
[WhiteElo "2842"]
[BlackElo "3025"]
[TimeControl "180+1"]
[EndTime "14:15:53 PST"]
[Termination "Konavets won by checkmate"]

1. e4 {[%clk 0:03:00.9]} 1... e5 {[%clk 0:02:58.1]} 2. Nc3 {[%clk 0:03:00.6]}
2... Nc6 {[%clk 0:02:59]} 3. Nf3 {[%clk 0:03:01.1]} 3... Bc5 {[%clk 0:02:59.6]}
4. Nxe5 {[%clk 0:03:00.9]} 4... Bxf2+ {[%clk 0:02:58.9]} 5. Kxf2 {[%clk
0:03:00.5]} 5... Nxe5 {[%clk 0:02:59.6]} 6. d4 {[%clk 0:03:00.7]} 6... Ng6
{[%clk 0:03:00.3]} 7. Bc4 {[%clk 0:02:54.4]} 7... d6 {[%clk 0:03:00.4]} 8. Rf1
{[%clk 0:02:54]} 8... Be6 {[%clk 0:03:00.1]} 9. Bxe6 {[%clk 0:02:42.4]} 9...
fxe6 {[%clk 0:02:59.8]} 10. Kg1 {[%clk 0:02:43.3]} 10... Nf6 {[%clk 0:03:00.4]}
11. Bg5 {[%clk 0:02:41.5]} 11... O-O {[%clk 0:03:00.7]} 12. Qe2 {[%clk 0:02:38]}
12... h6 {[%clk 0:03:00.8]} 13. Be3 {[%clk 0:02:32.3]} 13... e5 {[%clk
0:03:00.9]} 14. Rad1 {[%clk 0:02:21.4]} 14... exd4 {[%clk 0:03:00.3]} 15. Bxd4
{[%clk 0:02:22.3]} 15... Kh7 {[%clk 0:02:59.4]} 16. e5 {[%clk 0:02:15.7]} 16...
Re8 {[%clk 0:02:47.3]} 17. Qb5 {[%clk 0:01:22]} 17... Nxe5 {[%clk 0:02:39.2]}
18. Qxb7 {[%clk 0:01:22.2]} 18... Rb8 {[%clk 0:02:37.3]} 19. Qxa7 {[%clk
0:01:20.4]} 19... Rxb2 {[%clk 0:02:29.4]} 20. Nd5 {[%clk 0:01:08.6]} 20... Rxc2
{[%clk 0:02:29.3]} 21. Nxf6+ {[%clk 0:01:03.8]} 21... gxf6 {[%clk 0:02:29.3]}
22. Qb7 {[%clk 0:00:51]} 22... Nc6 {[%clk 0:02:21]} 23. Bf2 {[%clk 0:00:21.4]}
23... Ree2 {[%clk 0:02:04.5]} 24. a4 {[%clk 0:00:21.4]} 24... Qd7 {[%clk
0:01:55.4]} 25. Rde1 {[%clk 0:00:20.4]} 25... Nd4 {[%clk 0:01:38.7]} 26. Bxd4
{[%clk 0:00:18.8]} 26... Rxg2+ {[%clk 0:01:38.9]} 27. Qxg2 {[%clk 0:00:17.7]}
27... Rxg2+ {[%clk 0:01:39.8]} 28. Kxg2 {[%clk 0:00:17.7]} 28... Qg4+ {[%clk
0:01:40.4]} 29. Kh1 {[%clk 0:00:18.4]} 29... Qxd4 {[%clk 0:01:40.7]} 30. Ra1
{[%clk 0:00:19.2]} 30... Qd5+ {[%clk 0:01:38.8]} 31. Kg1 {[%clk 0:00:19.7]}
31... Qa5 {[%clk 0:01:39.5]} 32. Rfb1 {[%clk 0:00:15.6]} 32... c6 {[%clk
0:01:37.6]} 33. Rb7+ {[%clk 0:00:14.7]} 33... Kg6 {[%clk 0:01:37.4]} 34. Rb2
{[%clk 0:00:12.9]} 34... h5 {[%clk 0:01:36.5]} 35. Rg2+ {[%clk 0:00:10.3]} 35...
Kf7 {[%clk 0:01:36.8]} 36. Rf2 {[%clk 0:00:10.7]} 36... d5 {[%clk 0:01:37.3]}
37. Raf1 {[%clk 0:00:10.2]} 37... Qxa4 {[%clk 0:01:37]} 38. Rxf6+ {[%clk
0:00:10.8]} 38... Ke7 {[%clk 0:01:37.7]} 39. R6f2 {[%clk 0:00:06.5]} 39... Qg4+
{[%clk 0:01:35.5]} 40. Rg2 {[%clk 0:00:06.5]} 40... Qd4+ {[%clk 0:01:35.6]} 41.
Kh1 {[%clk 0:00:07.2]} 41... Kd6 {[%clk 0:01:35.6]} 42. Rg6+ {[%clk 0:00:06.4]}
42... Kc7 {[%clk 0:01:35.9]} 43. Rf7+ {[%clk 0:00:06.2]} 43... Kb6 {[%clk
0:01:35.8]} 44. Rff6 {[%clk 0:00:06.2]} 44... Qe4+ {[%clk 0:01:35.9]} 45. Kg1
{[%clk 0:00:06.6]} 45... d4 {[%clk 0:01:35.5]} 46. Re6 {[%clk 0:00:04.6]} 46...
Qb1+ {[%clk 0:01:32.3]} 47. Kf2 {[%clk 0:00:05.1]} 47... Qc2+ {[%clk 0:01:32.7]}
48. Ke1 {[%clk 0:00:05.5]} 48... h4 {[%clk 0:01:24.9]} 49. h3 {[%clk 0:00:05.4]}
49... Kb5 {[%clk 0:01:24.1]} 50. Re5+ {[%clk 0:00:02.9]} 50... Kb4 {[%clk
0:01:21.3]} 51. Rgg5 {[%clk 0:00:02.3]} 51... c5 {[%clk 0:01:14.5]} 52. Rd5
{[%clk 0:00:02.7]} 52... d3 {[%clk 0:01:10.5]} 53. Rxc5 {[%clk 0:00:02.4]} 53...
Qe2# {[%clk 0:01:10.3]} 0-1

[Event "*** Titled Tuesday Blitz"]
[Site "Chess.com"]
[Date "2020.03.03"]
[Round "7"]
[White "hansen"]
[Black "SantoBlue"]
[Result "1-0"]
[WhiteElo "2925"]
[BlackElo "2778"]
[TimeControl "180+1"]
[EndTime "14:15:53 PST"]
[Termination "hansen won on time"]

1. e4 {[%clk 0:02:51.7]} 1... e5 {[%clk 0:02:12.6]} 2. Nf3 {[%clk 0:02:51.3]}
2... Nc6 {[%clk 0:02:08.1]} 3. Bb5 {[%clk 0:02:46.3]} 3... a6 {[%clk 0:02:05]}
4. Ba4 {[%clk 0:02:45.3]} 4... Nf6 {[%clk 0:01:49.1]} 5. O-O {[%clk 0:02:24.4]}
5... b5 {[%clk 0:01:48.1]} 6. Bb3 {[%clk 0:02:23.6]} 6... Be7 {[%clk 0:01:48.5]}
7. Re1 {[%clk 0:02:23.2]} 7... O-O {[%clk 0:01:40.5]} 8. h3 {[%clk 0:02:22.3]}
8... Bb7 {[%clk 0:01:30.7]} 9. d3 {[%clk 0:02:03.7]} 9... d5 {[%clk 0:01:29.1]}
10. exd5 {[%clk 0:02:02.7]} 10... Nxd5 {[%clk 0:01:27.9]} 11. a4 {[%clk
0:02:00]} 11... Nd4 {[%clk 0:01:11.2]} 12. Nxd4 {[%clk 0:01:55.4]} 12... exd4
{[%clk 0:01:12.1]} 13. Nd2 {[%clk 0:01:53]} 13... Bb4 {[%clk 0:01:05.3]} 14. Rf1
{[%clk 0:01:10.4]} 14... Qf6 {[%clk 0:00:50.7]} 15. Ne4 {[%clk 0:01:07.2]} 15...
Qc6 {[%clk 0:00:45.2]} 16. axb5 {[%clk 0:01:05.4]} 16... axb5 {[%clk 0:00:45]}
17. Rxa8 {[%clk 0:01:05.6]} 17... Bxa8 {[%clk 0:00:45.9]} 18. Qf3 {[%clk
0:00:56]} 18... Kh8 {[%clk 0:00:34.3]} 19. Ng3 {[%clk 0:00:44.6]} 19... f5
{[%clk 0:00:26.1]} 20. Ne2 {[%clk 0:00:40.4]} 20... Qc5 {[%clk 0:00:16.9]} 21.
Qg3 {[%clk 0:00:38.7]} 21... Qb6 {[%clk 0:00:15.5]} 22. Bf4 {[%clk 0:00:27.8]}
22... Nxf4 {[%clk 0:00:12.2]} 23. Nxf4 {[%clk 0:00:27.7]} 23... Qh6 {[%clk
0:00:09.7]} 24. Ne6 {[%clk 0:00:23.1]} 24... Bd6 {[%clk 0:00:08.8]} 25. f4
{[%clk 0:00:21.5]} 25... Rf6 {[%clk 0:00:05.1]} 26. Ng5 {[%clk 0:00:15.2]} 26...
Qg6 {[%clk 0:00:05]} 27. Nf7+ {[%clk 0:00:14.3]} 27... Rxf7 {[%clk 0:00:02.4]}
28. Qxg6 {[%clk 0:00:14.1]} 28... hxg6 {[%clk 0:00:03.3]} 29. Bxf7 {[%clk
0:00:14.5]} 29... Kh7 {[%clk 0:00:04.2]} 30. h4 {[%clk 0:00:14.1]} 30... Bc6
{[%clk 0:00:02.6]} 31. g3 {[%clk 0:00:14.1]} 31... Kh6 {[%clk 0:00:02.5]} 32.
Re1 {[%clk 0:00:13.8]} 32... Bf3 {[%clk 0:00:02.3]} 33. Kf2 {[%clk 0:00:13.8]}
33... Bg4 {[%clk 0:00:02.8]} 34. Re6 {[%clk 0:00:13.4]} 34... Bh5 {[%clk
0:00:02]} 35. Re8 {[%clk 0:00:13.7]} 1-0

[Event "*** Titled Tuesday Blitz"]
[Site "Chess.com"]
[Date "2020.03.03"]
[Round "7"]
[White "LogoCzar"]
[Black "Lovkov_Roman"]
[Result "0-1"]
[WhiteElo "2502"]
[BlackElo "2696"]
[TimeControl "180+1"]
[EndTime "14:16:00 PST"]
[Termination "Lovkov_Roman won on time"]

1. e4 {[%clk 0:03:00.9]} 1... c5 {[%clk 0:02:54.8]} 2. Nf3 {[%clk 0:03:00.2]}
2... e6 {[%clk 0:02:53.4]} 3. d4 {[%clk 0:03:00.4]} 3... cxd4 {[%clk 0:02:54.3]}
4. Nxd4 {[%clk 0:03:01.3]} 4... a6 {[%clk 0:02:53]} 5. c4 {[%clk 0:03:01.1]}
5... Nf6 {[%clk 0:02:50.9]} 6. Nc3 {[%clk 0:03:01.4]} 6... Qc7 {[%clk
0:02:50.6]} 7. a3 {[%clk 0:03:00.1]} 7... Nxe4 {[%clk 0:02:50.7]} 8. Nxe4 {[%clk
0:03:00]} 8... Qe5 {[%clk 0:02:51.1]} 9. Be2 {[%clk 0:02:57.7]} 9... Qxe4 {[%clk
0:02:50.3]} 10. O-O {[%clk 0:02:57.9]} 10... Nc6 {[%clk 0:02:39.9]} 11. Be3
{[%clk 0:02:54.7]} 11... Be7 {[%clk 0:02:23.2]} 12. Qd2 {[%clk 0:02:53.6]} 12...
O-O {[%clk 0:02:00.9]} 13. Bd3 {[%clk 0:02:53.4]} 13... Qh4 {[%clk 0:02:00.5]}
14. Nf3 {[%clk 0:02:39.7]} 14... Qh5 {[%clk 0:01:59.8]} 15. c5 {[%clk
0:02:33.5]} 15... Bxc5 {[%clk 0:01:42.9]} 16. Bxh7+ {[%clk 0:02:09.2]} 16...
Qxh7 {[%clk 0:01:11.9]} 17. Bxc5 {[%clk 0:02:08]} 17... Rd8 {[%clk 0:01:10.5]}
18. Qd6 {[%clk 0:01:54.8]} 18... b5 {[%clk 0:01:06.4]} 19. Rfd1 {[%clk
0:01:46.9]} 19... Qf5 {[%clk 0:00:59.9]} 20. Rac1 {[%clk 0:01:28.2]} 20... Re8
{[%clk 0:00:59.5]} 21. Qc7 {[%clk 0:01:19.2]} 21... e5 {[%clk 0:00:51.1]} 22.
Bd6 {[%clk 0:01:01.4]} 22... e4 {[%clk 0:00:47.8]} 23. Nd4 {[%clk 0:00:54.5]}
23... Nxd4 {[%clk 0:00:47.1]} 24. Rxd4 {[%clk 0:00:53.7]} 24... Qg5 {[%clk
0:00:22.6]} 25. Re1 {[%clk 0:00:42.1]} 25... Qg6 {[%clk 0:00:17]} 26. Be7 {[%clk
0:00:27.2]} 26... d5 {[%clk 0:00:12.8]} 27. Rxd5 {[%clk 0:00:18.7]} 27... Bf5
{[%clk 0:00:11.8]} 28. Qe5 {[%clk 0:00:14]} 28... Be6 {[%clk 0:00:10.5]} 29. Qc7
{[%clk 0:00:05.5]} 29... Bxd5 {[%clk 0:00:09.4]} 30. Bb4 {[%clk 0:00:05.4]}
30... Rac8 {[%clk 0:00:08.7]} 31. Qf4 {[%clk 0:00:04.6]} 31... e3 {[%clk
0:00:07.6]} 32. f3 {[%clk 0:00:04.6]} 32... Rc2 {[%clk 0:00:07.6]} 33. g3 {[%clk
0:00:02.6]} 33... Qf6 {[%clk 0:00:06.8]} 0-1

[Event "*** Titled Tuesday Blitz"]
[Site "Chess.com"]
[Date "2020.03.03"]
[Round "7"]
[White "riconaipe"]
[Black "isla88"]
[Result "1-0"]
[WhiteElo "2555"]
[BlackElo "2326"]
[TimeControl "180+1"]
[EndTime "14:16:00 PST"]
[Termination "riconaipe won on time"]

1. e4 {[%clk 0:03:00.9]} 1... c5 {[%clk 0:03:00.1]} 2. Nf3 {[%clk 0:02:52.2]}
2... Nc6 {[%clk 0:03:00.1]} 3. b3 {[%clk 0:02:52]} 3... e5 {[%clk 0:02:53.6]} 4.
Bb2 {[%clk 0:02:51.2]} 4... d6 {[%clk 0:02:50.2]} 5. Bc4 {[%clk 0:02:48.3]} 5...
g6 {[%clk 0:02:39.4]} 6. O-O {[%clk 0:02:46.6]} 6... Bg7 {[%clk 0:02:39.3]} 7.
c3 {[%clk 0:02:46.2]} 7... Nf6 {[%clk 0:02:33.2]} 8. d4 {[%clk 0:02:45.2]} 8...
Nxe4 {[%clk 0:02:27.8]} 9. Bd5 {[%clk 0:02:39.5]} 9... Ng5 {[%clk 0:02:10.2]}
10. Bxc6+ {[%clk 0:02:35.9]} 10... bxc6 {[%clk 0:02:08.4]} 11. dxe5 {[%clk
0:02:36.1]} 11... Nxf3+ {[%clk 0:02:00.3]} 12. Qxf3 {[%clk 0:02:34.6]} 12...
Bxe5 {[%clk 0:01:58.6]} 13. Nd2 {[%clk 0:02:33.6]} 13... O-O {[%clk 0:01:50.6]}
14. Nc4 {[%clk 0:02:33.6]} 14... Bg7 {[%clk 0:01:46.4]} 15. Qxc6 {[%clk
0:02:33]} 15... Be6 {[%clk 0:01:17.4]} 16. Nxd6 {[%clk 0:02:27.5]} 16... Qg5
{[%clk 0:01:08.8]} 17. Ne4 {[%clk 0:02:16.3]} 17... Qf4 {[%clk 0:00:59.8]} 18.
Ng3 {[%clk 0:02:00.5]} 18... Rac8 {[%clk 0:00:51.7]} 19. Qe4 {[%clk 0:01:53.5]}
19... Qd2 {[%clk 0:00:46.1]} 20. Qe2 {[%clk 0:01:52]} 20... Bxc3 {[%clk
0:00:44.8]} 21. Qxd2 {[%clk 0:01:47.6]} 21... Bxd2 {[%clk 0:00:44.7]} 22. Ne4
{[%clk 0:01:48.3]} 22... Rfd8 {[%clk 0:00:39.3]} 23. Rfd1 {[%clk 0:01:38.7]}
23... Bf4 {[%clk 0:00:19]} 24. Nxc5 {[%clk 0:01:34.6]} 24... Rxd1+ {[%clk
0:00:16]} 25. Rxd1 {[%clk 0:01:34.4]} 25... Bf5 {[%clk 0:00:15.8]} 26. g3 {[%clk
0:01:23.9]} 26... Bh6 {[%clk 0:00:13]} 27. Nd7 {[%clk 0:01:23.3]} 27... Rc2
{[%clk 0:00:07.2]} 28. Nf6+ {[%clk 0:01:17.1]} 28... Kf8 {[%clk 0:00:07.5]} 29.
Ba3+ {[%clk 0:01:12.6]} 29... Kg7 {[%clk 0:00:05.6]} 30. Ne8+ {[%clk 0:01:11]}
30... Kg8 {[%clk 0:00:05]} 31. Rd8 {[%clk 0:00:57.4]} 31... Bg5 {[%clk
0:00:02.9]} 32. Rb8 {[%clk 0:00:45]} 32... Rxa2 {[%clk 0:00:02.7]} 33. Bc5
{[%clk 0:00:37.2]} 33... Bh3 {[%clk 0:00:02.3]} 34. Bd4 {[%clk 0:00:33.2]} 34...
f6 {[%clk 0:00:02.2]} 35. Nxf6+ {[%clk 0:00:26.3]} 35... Kf7 {[%clk 0:00:01.8]}
36. Ne4 {[%clk 0:00:26.8]} 1-0

[Event "*** Titled Tuesday Blitz"]
[Site "Chess.com"]
[Date "2020.03.03"]
[Round "7"]
[White "dopolian"]
[Black "Fuerza777"]
[Result "1-0"]
[WhiteElo "2377"]
[BlackElo "2207"]
[TimeControl "180+1"]
[EndTime "14:16:04 PST"]
[Termination "dopolian won by checkmate"]

1. e4 {[%clk 0:03:00.9]} 1... e5 {[%clk 0:02:59.6]} 2. Nf3 {[%clk 0:03:01]} 2...
Nc6 {[%clk 0:03:00]} 3. Bb5 {[%clk 0:03:00.4]} 3... a6 {[%clk 0:02:59.2]} 4. Ba4
{[%clk 0:02:51.5]} 4... Nf6 {[%clk 0:02:59.4]} 5. O-O {[%clk 0:02:51.8]} 5...
Be7 {[%clk 0:02:59.8]} 6. Re1 {[%clk 0:02:51.9]} 6... b5 {[%clk 0:03:00.3]} 7.
Bb3 {[%clk 0:02:52.4]} 7... d6 {[%clk 0:03:01.2]} 8. c3 {[%clk 0:02:51.8]} 8...
O-O {[%clk 0:03:01.4]} 9. h3 {[%clk 0:02:52.1]} 9... Na5 {[%clk 0:03:02]} 10.
Bc2 {[%clk 0:02:51.9]} 10... c5 {[%clk 0:03:02.6]} 11. d4 {[%clk 0:02:52.7]}
11... Qc7 {[%clk 0:03:03.1]} 12. Nbd2 {[%clk 0:02:53.2]} 12... cxd4 {[%clk
0:03:03.4]} 13. cxd4 {[%clk 0:02:54.1]} 13... Nc6 {[%clk 0:03:03.8]} 14. d5
{[%clk 0:02:53.4]} 14... Nb4 {[%clk 0:03:03.6]} 15. Bb1 {[%clk 0:02:54]} 15...
a5 {[%clk 0:03:04]} 16. a3 {[%clk 0:02:49.9]} 16... Na6 {[%clk 0:03:03.6]} 17.
Nf1 {[%clk 0:02:48.5]} 17... Bd7 {[%clk 0:03:03.8]} 18. Be3 {[%clk 0:02:40.9]}
18... Rfc8 {[%clk 0:03:01.9]} 19. Ng3 {[%clk 0:02:31.8]} 19... Qb7 {[%clk
0:02:51.7]} 20. Nh2 {[%clk 0:01:59.1]} 20... Bd8 {[%clk 0:02:25.3]} 21. Ng4
{[%clk 0:01:57]} 21... Nxg4 {[%clk 0:02:25.3]} 22. hxg4 {[%clk 0:01:57.4]} 22...
g6 {[%clk 0:02:19.1]} 23. g5 {[%clk 0:01:54.8]} 23... Bb6 {[%clk 0:02:12.6]} 24.
Qf3 {[%clk 0:01:44.9]} 24... Nc5 {[%clk 0:02:06.1]} 25. Bc2 {[%clk 0:01:29.4]}
25... a4 {[%clk 0:01:32.7]} 26. Rac1 {[%clk 0:01:18.8]} 26... Ba5 {[%clk
0:01:25.6]} 27. Red1 {[%clk 0:01:12.6]} 27... b4 {[%clk 0:01:19.9]} 28. axb4
{[%clk 0:00:43.3]} 28... Qxb4 {[%clk 0:01:19.2]} 29. Rb1 {[%clk 0:00:26.7]}
29... Nb3 {[%clk 0:01:13.4]} 30. Bd3 {[%clk 0:00:23.5]} 30... Nd4 {[%clk
0:01:09.9]} 31. Bxd4 {[%clk 0:00:23.1]} 31... exd4 {[%clk 0:00:58.1]} 32. Nf5
{[%clk 0:00:18.8]} 32... gxf5 {[%clk 0:00:56.8]} 33. exf5 {[%clk 0:00:19.7]}
33... Bd8 {[%clk 0:00:40.5]} 34. f6 {[%clk 0:00:19.8]} 34... Bb5 {[%clk
0:00:22.3]} 35. Bxh7+ {[%clk 0:00:17]} 35... Kf8 {[%clk 0:00:17.6]} 36. Qh3
{[%clk 0:00:15]} 36... Be2 {[%clk 0:00:06.4]} 37. Re1 {[%clk 0:00:12]} 37... d3
{[%clk 0:00:06]} 38. Bxd3 {[%clk 0:00:12.1]} 38... Ke8 {[%clk 0:00:02.3]} 39.
Rxe2+ {[%clk 0:00:12]} 39... Kf8 {[%clk 0:00:01.6]} 40. Qh8# {[%clk 0:00:11]}
1-0

[Event "*** Titled Tuesday Blitz"]
[Site "Chess.com"]
[Date "2020.03.03"]
[Round "7"]
[White "MiroMiljkovic"]
[Black "Maikrosoft63"]
[Result "1-0"]
[WhiteElo "2577"]
[BlackElo "2566"]
[TimeControl "180+1"]
[EndTime "14:16:08 PST"]
[Termination "MiroMiljkovic won on time"]

1. d4 {[%clk 0:03:00.9]} 1... Nf6 {[%clk 0:02:59.6]} 2. c4 {[%clk 0:03:01.2]}
2... e6 {[%clk 0:02:59.6]} 3. Nc3 {[%clk 0:03:01.6]} 3... Bb4 {[%clk 0:02:59.1]}
4. Qc2 {[%clk 0:03:01.4]} 4... O-O {[%clk 0:02:58.5]} 5. e4 {[%clk 0:03:01.5]}
5... d6 {[%clk 0:02:58]} 6. a3 {[%clk 0:03:00.6]} 6... Bxc3+ {[%clk 0:02:56.9]}
7. bxc3 {[%clk 0:03:01.5]} 7... h6 {[%clk 0:02:49.8]} 8. Bd3 {[%clk 0:03:00.9]}
8... e5 {[%clk 0:02:47.9]} 9. Ne2 {[%clk 0:03:01.3]} 9... b6 {[%clk 0:02:43.4]}
10. O-O {[%clk 0:03:01.2]} 10... Nc6 {[%clk 0:02:41.4]} 11. f4 {[%clk
0:02:59.9]} 11... Ba6 {[%clk 0:02:38.4]} 12. Rf3 {[%clk 0:02:42.5]} 12... Na5
{[%clk 0:02:36.6]} 13. Ng3 {[%clk 0:02:28.1]} 13... Bxc4 {[%clk 0:02:30.2]} 14.
fxe5 {[%clk 0:02:22.6]} 14... dxe5 {[%clk 0:02:28.9]} 15. Nf5 {[%clk 0:02:13.9]}
15... Kh7 {[%clk 0:02:16.3]} 16. Rh3 {[%clk 0:01:58.9]} 16... Ng8 {[%clk
0:01:43.8]} 17. Rg3 {[%clk 0:01:02.5]} 17... g6 {[%clk 0:01:28.3]} 18. Nxh6
{[%clk 0:01:02.2]} 18... Nxh6 {[%clk 0:01:28]} 19. Rh3 {[%clk 0:01:00]} 19...
Rh8 {[%clk 0:01:22]} 20. Bxh6 {[%clk 0:00:53.5]} 20... Kg8 {[%clk 0:01:21.5]}
21. Rf1 {[%clk 0:00:53.1]} 21... exd4 {[%clk 0:00:58.6]} 22. Qf2 {[%clk
0:00:41.4]} 22... Qe7 {[%clk 0:00:42.9]} 23. Bxc4 {[%clk 0:00:34.9]} 23... Nxc4
{[%clk 0:00:43.8]} 24. Bg5 {[%clk 0:00:35.1]} 24... Rxh3 {[%clk 0:00:04.8]} 25.
Bxe7 {[%clk 0:00:33]} 25... Rh7 {[%clk 0:00:05.3]} 26. Qxd4 {[%clk 0:00:31.6]}
26... b5 {[%clk 0:00:05.5]} 27. e5 {[%clk 0:00:24.7]} 27... Re8 {[%clk
0:00:05.4]} 28. Bf6 {[%clk 0:00:21.6]} 28... Rh5 {[%clk 0:00:04.9]} 29. Qd5
{[%clk 0:00:17.4]} 29... Ne3 {[%clk 0:00:03.8]} 30. Qxb5 {[%clk 0:00:16.2]}
30... Rf8 {[%clk 0:00:02.3]} 31. Rf3 {[%clk 0:00:13.9]} 31... Ng4 {[%clk
0:00:02.3]} 32. Qc4 {[%clk 0:00:05.7]} 1-0

[Event "*** Titled Tuesday Blitz"]
[Site "Chess.com"]
[Date "2020.03.03"]
[Round "7"]
[White "VALPARAISO37"]
[Black "RiskyDecision"]
[Result "1-0"]
[WhiteElo "2419"]
[BlackElo "2602"]
[TimeControl "180+1"]
[EndTime "14:16:08 PST"]
[Termination "VALPARAISO37 won by resignation"]

1. d4 {[%clk 0:03:00.9]} 1... f5 {[%clk 0:02:59.6]} 2. Nc3 {[%clk 0:03:00.3]}
2... Nf6 {[%clk 0:02:58.4]} 3. Bg5 {[%clk 0:03:00.3]} 3... d5 {[%clk 0:02:58.5]}
4. Bxf6 {[%clk 0:02:59.8]} 4... exf6 {[%clk 0:02:58.4]} 5. e3 {[%clk 0:02:59.9]}
5... Be6 {[%clk 0:02:55.6]} 6. Bd3 {[%clk 0:02:53.4]} 6... Nc6 {[%clk
0:02:53.6]} 7. a3 {[%clk 0:02:51.6]} 7... Qd7 {[%clk 0:02:51.7]} 8. h4 {[%clk
0:02:50.8]} 8... h5 {[%clk 0:02:45.8]} 9. Nge2 {[%clk 0:02:43.9]} 9... g6 {[%clk
0:02:45]} 10. Nf4 {[%clk 0:02:40.2]} 10... Bf7 {[%clk 0:02:45.3]} 11. Qf3 {[%clk
0:02:38.2]} 11... O-O-O {[%clk 0:02:42.3]} 12. b4 {[%clk 0:02:36.8]} 12... Kb8
{[%clk 0:02:33.7]} 13. Bb5 {[%clk 0:02:35.2]} 13... Qd6 {[%clk 0:02:07.3]} 14.
Nd3 {[%clk 0:02:28.9]} 14... Ne7 {[%clk 0:01:55.6]} 15. Nc5 {[%clk 0:02:26.5]}
15... Nc8 {[%clk 0:01:54.2]} 16. Bd3 {[%clk 0:02:24.6]} 16... Nb6 {[%clk
0:01:48]} 17. a4 {[%clk 0:02:20.2]} 17... c6 {[%clk 0:01:40.6]} 18. a5 {[%clk
0:02:07.1]} 18... Nc4 {[%clk 0:01:27.6]} 19. b5 {[%clk 0:02:03.8]} 19... cxb5
{[%clk 0:01:20.6]} 20. Nxb5 {[%clk 0:02:02.7]} 20... Qc6 {[%clk 0:01:18.3]} 21.
Qf4+ {[%clk 0:01:48.3]} 21... Bd6 {[%clk 0:01:15.7]} 22. Nxd6 {[%clk 0:01:44.2]}
22... Qxd6 {[%clk 0:01:15.8]} 23. Qf3 {[%clk 0:01:36.6]} 23... Ne5 {[%clk
0:01:05.4]} 24. Qe2 {[%clk 0:01:27.8]} 24... Nd7 {[%clk 0:01:03.3]} 25. Nb3
{[%clk 0:01:20.6]} 25... Qb4+ {[%clk 0:01:03.3]} 26. Qd2 {[%clk 0:01:21.2]}
26... Qxd2+ {[%clk 0:01:02.9]} 27. Kxd2 {[%clk 0:01:21]} 27... Rc8 {[%clk
0:00:57.1]} 28. Rhb1 {[%clk 0:01:19.1]} 28... Rc7 {[%clk 0:00:54.4]} 29. Rb2
{[%clk 0:01:11.9]} 29... Kc8 {[%clk 0:00:51.2]} 30. Bb5 {[%clk 0:01:10.2]} 30...
Be6 {[%clk 0:00:47.1]} 31. Bxd7+ {[%clk 0:01:09.1]} 31... Bxd7 {[%clk 0:00:47]}
32. Nc5 {[%clk 0:01:09.3]} 32... Bc6 {[%clk 0:00:46.4]} 33. Ne6 {[%clk 0:01:06]}
33... Re7 {[%clk 0:00:45.3]} 34. Nf4 {[%clk 0:01:05.4]} 34... g5 {[%clk
0:00:42.2]} 35. Ng6 {[%clk 0:01:04.6]} 35... Rhe8 {[%clk 0:00:41.1]} 36. Nxe7+
{[%clk 0:01:04.3]} 36... Rxe7 {[%clk 0:00:42]} 37. Rh1 {[%clk 0:01:03.1]} 37...
g4 {[%clk 0:00:39.9]} 38. g3 {[%clk 0:01:02.9]} 38... Kc7 {[%clk 0:00:40.2]} 39.
Rc1 {[%clk 0:01:02]} 39... Kd6 {[%clk 0:00:35.1]} 40. c4 {[%clk 0:01:01.8]}
40... dxc4 {[%clk 0:00:34.7]} 41. Rxc4 {[%clk 0:01:01.9]} 41... Be4 {[%clk
0:00:35.5]} 42. Rc5 {[%clk 0:00:58.7]} 42... Rd7 {[%clk 0:00:32.1]} 43. Rbb5
{[%clk 0:00:55.3]} 43... Ke6 {[%clk 0:00:32.4]} 44. Rc8 {[%clk 0:00:50.1]} 44...
Kf7 {[%clk 0:00:30.9]} 45. Rbc5 {[%clk 0:00:46.5]} 45... b6 {[%clk 0:00:27.5]}
46. R5c7 {[%clk 0:00:44.6]} 46... Ke6 {[%clk 0:00:26.4]} 47. axb6 {[%clk
0:00:42.1]} 47... axb6 {[%clk 0:00:26.3]} 48. Re8+ {[%clk 0:00:41]} 48... Kd6
{[%clk 0:00:26.5]} 49. Rxd7+ {[%clk 0:00:41.3]} 49... Kxd7 {[%clk 0:00:27.4]}
50. Rf8 {[%clk 0:00:41.4]} 50... b5 {[%clk 0:00:22.3]} 51. Rxf6 {[%clk
0:00:40.7]} 51... Kc7 {[%clk 0:00:23]} 52. Kc3 {[%clk 0:00:39.4]} 52... Kd7
{[%clk 0:00:19.3]} 53. Kb4 {[%clk 0:00:39.1]} 1-0

[Event "*** Titled Tuesday Blitz"]
[Site "Chess.com"]
[Date "2020.03.03"]
[Round "7"]
[White "Poghosyan_Suren"]
[Black "IgorBjelobrk"]
[Result "0-1"]
[WhiteElo "2454"]
[BlackElo "2701"]
[TimeControl "180+1"]
[EndTime "14:16:11 PST"]
[Termination "IgorBjelobrk won on time"]

1. Nf3 {[%clk 0:03:00.8]} 1... d5 {[%clk 0:02:58.2]} 2. c4 {[%clk 0:02:59.7]}
2... e6 {[%clk 0:02:57.5]} 3. g3 {[%clk 0:02:59.2]} 3... Nf6 {[%clk 0:02:57.6]}
4. Bg2 {[%clk 0:02:59.4]} 4... dxc4 {[%clk 0:02:58.2]} 5. Qa4+ {[%clk
0:02:57.4]} 5... c6 {[%clk 0:02:56.8]} 6. Qxc4 {[%clk 0:02:58.3]} 6... b5 {[%clk
0:02:56.7]} 7. Qc2 {[%clk 0:02:58]} 7... Bb7 {[%clk 0:02:56.8]} 8. Ne5 {[%clk
0:02:55.8]} 8... Bd6 {[%clk 0:02:36.4]} 9. d4 {[%clk 0:02:45.6]} 9... O-O {[%clk
0:02:33.9]} 10. O-O {[%clk 0:02:42.3]} 10... Nbd7 {[%clk 0:02:22.5]} 11. Nxc6
{[%clk 0:02:36.9]} 11... Qb6 {[%clk 0:02:21.1]} 12. Bf4 {[%clk 0:02:10.5]} 12...
Bxf4 {[%clk 0:02:19.7]} 13. gxf4 {[%clk 0:02:09.4]} 13... Kh8 {[%clk 0:02:16.2]}
14. Ne5 {[%clk 0:02:03.9]} 14... Bxg2 {[%clk 0:02:14.5]} 15. Kxg2 {[%clk
0:02:03.4]} 15... Qxd4 {[%clk 0:02:14.3]} 16. Rd1 {[%clk 0:01:59]} 16... Qb6
{[%clk 0:02:03.5]} 17. Nc3 {[%clk 0:01:29]} 17... Nxe5 {[%clk 0:01:50.8]} 18.
fxe5 {[%clk 0:01:28.7]} 18... Ng4 {[%clk 0:01:51.2]} 19. e3 {[%clk 0:00:56.7]}
19... Nxe5 {[%clk 0:01:50]} 20. Qe4 {[%clk 0:00:53.8]} 20... Ng6 {[%clk
0:01:40.3]} 21. Rd7 {[%clk 0:00:49.4]} 21... Rad8 {[%clk 0:01:34.8]} 22. Rad1
{[%clk 0:00:47.8]} 22... Rxd7 {[%clk 0:01:34.4]} 23. Rxd7 {[%clk 0:00:48.7]}
23... a6 {[%clk 0:01:18.8]} 24. a4 {[%clk 0:00:36.2]} 24... bxa4 {[%clk
0:01:12.3]} 25. Nxa4 {[%clk 0:00:35.7]} 25... Qb5 {[%clk 0:01:11.1]} 26. Rb7
{[%clk 0:00:34.8]} 26... Qg5+ {[%clk 0:01:09.6]} 27. Kf1 {[%clk 0:00:33.8]}
27... h6 {[%clk 0:01:03.7]} 28. b4 {[%clk 0:00:31]} 28... Kg8 {[%clk 0:00:51.5]}
29. Nc5 {[%clk 0:00:29.3]} 29... a5 {[%clk 0:00:50.1]} 30. Nd7 {[%clk
0:00:26.1]} 30... Rc8 {[%clk 0:00:47.8]} 31. b5 {[%clk 0:00:24.9]} 31... Rc1+
{[%clk 0:00:43.5]} 32. Ke2 {[%clk 0:00:23.2]} 32... Qh5+ {[%clk 0:00:40.5]} 33.
Qf3 {[%clk 0:00:05.8]} 33... Re1+ {[%clk 0:00:38.5]} 34. Kxe1 {[%clk 0:00:06]}
34... Qxf3 {[%clk 0:00:38.9]} 35. Rb8+ {[%clk 0:00:06.8]} 35... Kh7 {[%clk
0:00:39.2]} 36. b6 {[%clk 0:00:07.5]} 36... Qc6 {[%clk 0:00:35.1]} 37. Rd8
{[%clk 0:00:05.9]} 37... a4 {[%clk 0:00:30.7]} 38. h4 {[%clk 0:00:05.2]} 38...
h5 {[%clk 0:00:30]} 39. f4 {[%clk 0:00:01.3]} 39... a3 {[%clk 0:00:29.5]} 40. f5
{[%clk 0:00:02.2]} 40... exf5 {[%clk 0:00:28.9]} 0-1